fUST/lending_fUST_20250302
["ID","MTS","AMOUNT","RATE_DAILY","PERIOD"]
[355019710,1740869449274,-500.0,0.00025205,2]
[355019711,1740869449286,-500.0,0.00025205,2]
[355019712,1740869449297,-500.0,0.00025205,2]
[355019713,1740869449307,-500.0,0.00025205,2]
[355019714,1740869449317,-500.0,0.00025205,2]
[355019715,1740869449328,-500.0,0.00025205,2]
[355019716,1740869449338,-500.0,0.00025205,2]
[355019717,1740869449349,-500.0,0.00025205,2]
[355019718,1740869449359,-500.0,0.00025205,2]
[355019719,1740869449370,-1165.38,0.00025205,2]
[355019720,1740869449380,-657.57,0.00025205,2]
[355019721,1740869449390,-500.0,0.00025205,2]
[355019722,1740869449400,-500.0,0.00025205,2]
[355019723,1740869449411,-579.62638565,0.00025205,2]
[355019724,1740869449420,-500.0,0.00025205,2]
[355019725,1740869449430,-500.0,0.00025205,2]
[355019726,1740869449440,-500.0,0.00025205,2]
[355019727,1740869449450,-500.0,0.00025205,2]
[355019728,1740869449459,-500.0,0.00025205,2]
[355019729,1740869449470,-320.22280286,0.00025205,2]
[355019730,1740869449481,-500.0,0.00025205,2]
[355019731,1740869449491,-500.0,0.00025205,2]
[355019732,1740869449501,-500.0,0.00025205,2]
[355019733,1740869449510,-852.57,0.00025205,2]
[355019734,1740869449520,-500.0,0.00025205,2]
[355019735,1740869449530,-509.6681462,0.00025205,2]
[355019736,1740869449540,-500.0,0.00025205,2]
[355019737,1740869449550,-500.0,0.00025205,2]
[355019738,1740869449560,-500.0,0.00025205,2]
[355019739,1740869449569,-575.65,0.00025205,2]
[355019740,1740869449579,-500.0,0.00025205,2]
[355019741,1740869449589,-500.0,0.00025205,2]
[355019742,1740869449600,-500.0,0.00025205,2]
[355019743,1740869449610,-500.0,0.00025205,2]
[355019744,1740869449620,-655.34,0.00025205,2]
[355019745,1740869449631,-500.0,0.00025205,2]
[355019746,1740869449641,-500.0,0.00025205,2]
[355019747,1740869449650,-799.77,0.00025205,2]
[355019748,1740869449660,-861.06,0.00025205,2]
[355019749,1740869449670,-500.0,0.00025205,2]
[355019750,1740869449680,-500.0,0.00025205,2]
[355019751,1740869449691,-509.23,0.00025205,2]
[355019752,1740869449705,-1278.65,0.00025205,2]
[355019753,1740869449715,-500.0,0.00025205,2]
[355019754,1740869449724,-500.0,0.00025205,2]
[355019755,1740869449735,-237.999001,0.00025205,2]
[355019756,1740869449744,-500.0,0.00025205,2]
[355019757,1740869449754,-716.36,0.00025205,2]
[355019758,1740869449764,-500.0,0.00025205,2]
[355019759,1740869449775,-500.0,0.00025205,2]
[355019760,1740869449785,-500.0,0.00025205,2]
[355019761,1740869449795,-500.0,0.00025205,2]
[355019762,1740869449804,-500.0,0.00025205,2]
[355019763,1740869449814,-500.0,0.00025205,2]
[355019764,1740869449823,-761.86,0.00025205,2]
[355019765,1740869449833,-552.44,0.00025205,2]
[355019766,1740869449842,-1699.7,0.00025205,2]
[355019767,1740869449852,-1148.73,0.00025205,2]
[355019768,1740869449862,-680.66,0.00025205,2]
[355019769,1740869449872,-1089.55,0.00025205,2]
[355019770,1740869449881,-500.0,0.00025205,2]
[355019771,1740869449891,-500.0,0.00025205,2]
[355019772,1740869449900,-1740.58,0.00025205,2]
[355019773,1740869449910,-500.0,0.00025205,2]
[355019774,1740869449920,-604.1262745,0.00025205,2]
[355019775,1740869449929,-508.53943739,0.00025205,2]
[355019776,1740869449939,-500.0,0.00025205,2]
[355019777,1740869449950,-1075.29,0.00025205,2]
[355019778,1740869449960,-1449.89,0.00025205,2]
[355019779,1740869449970,-500.0,0.00025205,2]
[355019780,1740869449979,-500.0,0.00025205,2]
[355019781,1740869449989,-500.0,0.00025205,2]
[355019782,1740869449998,-500.0,0.00025205,2]
[355019783,1740869450008,-500.0,0.00025205,2]
[355019784,1740869450019,-1402.7,0.00025205,2]
[355019785,1740869450029,-1175.61,0.00025205,2]
[355019786,1740869450038,-500.0,0.00025205,2]
[355019787,1740869450048,-956.1,0.00025205,2]
[355019788,1740869450058,-500.0,0.00025205,2]
[355019789,1740869450067,-1479.77,0.00025205,2]
[355019790,1740869450077,-500.0,0.00025205,2]
[355019791,1740869450087,-500.0,0.00025205,2]
[355019792,1740869450096,-677.2,0.00025205,2]
[355019793,1740869450106,-500.0,0.00025205,2]
[355019794,1740869450116,-500.0,0.00025205,2]
[355019795,1740869450125,-500.0,0.00025205,2]
[355019796,1740869450135,-500.0,0.00025205,2]
[355019797,1740869450146,-500.0,0.00025205,2]
[355019798,1740869450155,-500.0,0.00025205,2]
[355019799,1740869450165,-570.19,0.00025205,2]
[355019800,1740869450175,-500.0,0.00025205,2]
[355019801,1740869450185,-500.0,0.00025205,2]
[355019802,1740869450197,-1251.78,0.00025205,2]
[355019803,1740869450207,-1615.73,0.00025205,2]
[355019804,1740869450217,-500.0,0.00025205,2]
[355019805,1740869450227,-500.0,0.00025205,2]
[355019806,1740869450237,-500.0,0.00025205,2]
[355019807,1740869450247,-667.66,0.00025205,2]
[355019808,1740869450256,-540.2,0.00025205,2]
[355019809,1740869450267,-500.0,0.00025205,2]
[355019810,1740869450276,-566.1,0.00025205,2]
[355019811,1740869450287,-500.0,0.00025205,2]
[355019812,1740869450300,-500.0,0.00025205,2]
[355019813,1740869450310,-500.0,0.00025205,2]
[355019814,1740869450320,-500.0,0.00025205,2]
[355019815,1740869450330,-1077.35,0.00025205,2]
[355019816,1740869450340,-1111.19,0.00025205,2]
[355019817,1740869450349,-500.0,0.00025205,2]
[355019818,1740869450360,-1053.94,0.00025205,2]
[355019819,1740869450370,-1125.69,0.00025205,2]
[355019820,1740869450380,-581.04,0.00025205,2]
[355019821,1740869450390,-500.0,0.00025205,2]
[355019822,1740869450399,-500.0,0.00025205,2]
[355019823,1740869450410,-500.0,0.00025205,2]
[355019824,1740869450419,-2619.89,0.00025205,2]
[355019825,1740869450429,-617.63,0.00025205,2]
[355019826,1740869450439,-500.0,0.00025205,2]
[355019827,1740869450449,-500.0,0.00025205,2]
[355019828,1740869450458,-500.0,0.00025205,2]
[355019829,1740869450468,-500.0,0.00025205,2]
[355019830,1740869450478,-500.0,0.00025205,2]
[355019831,1740869450487,-1949.35,0.00025205,2]
[355019832,1740869450497,-500.0,0.00025205,2]
[355019833,1740869450507,-1000.0,0.00025205,2]
[355019834,1740869450517,-500.0,0.00025205,2]
[355019835,1740869450526,-507.57,0.00025205,2]
[355019836,1740869450537,-1138.18,0.00025205,2]
[355019837,1740869450546,-560.17873018,0.00025205,2]
[355019838,1740869450556,-500.0,0.00025205,2]
[355019839,1740869450566,-500.0,0.00025205,2]
[355019840,1740869450576,-500.0,0.00025205,2]
[355019841,1740869450586,-500.0,0.00025205,2]
[355019842,1740869450596,-500.0,0.00025205,2]
[355019843,1740869450606,-500.0,0.00025205,2]
[355019844,1740869450615,-1077.22,0.00025205,2]
[355019846,1740869450625,-500.0,0.00025205,2]
[355019847,1740869450635,-500.0,0.00025205,2]
[355019848,1740869450644,-500.0,0.00025205,2]
[355019849,1740869450654,-500.0,0.00025205,2]
[355019850,1740869450664,-1253.46,0.00025205,2]
[355019851,1740869450673,-751.12,0.00025205,2]
[355019852,1740869450683,-500.0,0.00025205,2]
[355019853,1740869450694,-500.0,0.00025205,2]
[355019854,1740869450706,-500.0,0.00025205,2]
[355019855,1740869450716,-1003.05,0.00025205,2]
[355019856,1740869450725,-500.0,0.00025205,2]
[355019857,1740869450736,-500.0,0.00025205,2]
[355019858,1740869450746,-916.13,0.00025205,2]
[355019859,1740869450757,-1608.32,0.00025205,2]
[355019860,1740869450766,-500.0,0.00025205,2]
[355019861,1740869450777,-500.0,0.00025205,2]
[355019862,1740869450787,-500.0,0.00025205,2]
[355019863,1740869450796,-500.0,0.00025205,2]
[355019864,1740869450806,-500.0,0.00025205,2]
[355019865,1740869450815,-500.0,0.00025205,2]
[355019866,1740869450825,-500.0,0.00025205,2]
[355019867,1740869450835,-500.0,0.00025205,2]
[355019868,1740869450845,-500.0,0.00025205,2]
[355019869,1740869450855,-2497.31,0.00025205,2]
[355019870,1740869450864,-617.4,0.00025205,2]
[355019871,1740869450874,-2157.87,0.00025205,2]
[355019872,1740869450883,-607.65,0.00025205,2]
[355019873,1740869450893,-500.0,0.00025205,2]
[355019874,1740869450903,-500.0,0.00025205,2]
[355019875,1740869450913,-835.73,0.00025205,2]
[355019876,1740869450923,-500.0,0.00025205,2]
[355019877,1740869450933,-500.0,0.00025205,2]
[355019878,1740869450944,-1211.21,0.00025205,2]
[355019879,1740869450953,-500.0,0.00025205,2]
[355019880,1740869450963,-500.0,0.00025205,2]
[355019881,1740869450973,-500.0,0.00025205,2]
[355019882,1740869450983,-500.0,0.00025205,2]
[355019883,1740869450994,-1024.74,0.00025205,2]
[355019884,1740869451004,-500.0,0.00025205,2]
[355019885,1740869451015,-500.0,0.00025205,2]
[355019886,1740869451025,-500.0,0.00025205,2]
[355019887,1740869451034,-955.88,0.00025205,2]
[355019888,1740869451044,-500.0,0.00025205,2]
[355019889,1740869451054,-500.0,0.00025205,2]
[355019890,1740869451063,-500.0,0.00025205,2]
[355019891,1740869451073,-500.0,0.00025205,2]
[355019892,1740869451083,-500.0,0.00025205,2]
[355019893,1740869451093,-854.11,0.00025205,2]
[355019894,1740869451103,-500.0,0.00025205,2]
[355019895,1740869451112,-500.0,0.00025205,2]
[355019896,1740869451122,-500.0,0.00025205,2]
[355019897,1740869451131,-510.48348613,0.00025205,2]
[355019898,1740869451141,-500.0,0.00025205,2]
[355019899,1740869451151,-500.0,0.00025205,2]
[355019900,1740869451160,-500.0,0.00025205,2]
[355019901,1740869451170,-565.52,0.00025205,2]
[355019902,1740869451179,-509.48,0.00025205,2]
[355019903,1740869451189,-500.0,0.00025205,2]
[355019904,1740869451199,-500.0,0.00025205,2]
[355019905,1740869451208,-500.0,0.00025205,2]
[355019906,1740869451217,-500.0,0.00025205,2]
[355019907,1740869451227,-1042.76,0.00025205,2]
[355019908,1740869451237,-19624.61182001,0.00025205,7]
[355019909,1740869451246,-2968.67,0.00025205,2]
[355019910,1740869451256,-509.37184616,0.00025205,2]
[355019911,1740869451266,-500.0,0.00025205,2]
[355019912,1740869451275,-500.0,0.00025205,2]
[355019913,1740869451285,-500.0,0.00025205,2]
[355019914,1740869451294,-500.0,0.00025205,2]
[355019915,1740869451304,-1506.03,0.00025205,2]
[355019916,1740869451314,-753.21,0.00025205,2]
[355019917,1740869451323,-716.29,0.00025205,2]
[355019918,1740869451333,-500.0,0.00025205,2]
[355019919,1740869451342,-500.0,0.00025205,2]
[355019920,1740869451351,-603.78,0.00025205,2]
[355019921,1740869451361,-500.0,0.00025205,2]
[355019922,1740869451371,-1854.45,0.00025205,2]
[355019923,1740869451380,-9503.98,0.00025205,2]
[355019924,1740869451389,-500.0,0.00025205,2]
[355019925,1740869451399,-1807.55,0.00025205,2]
[355019926,1740869451408,-500.0,0.00025205,2]
[355019927,1740869451418,-500.0,0.00025205,2]
[355019928,1740869451427,-1426.96,0.00025205,2]
[355019929,1740869451437,-1265.66,0.00025205,2]
[355019930,1740869451447,-700.06,0.00025205,2]
[355019931,1740869451456,-759.39,0.00025205,2]
[355019932,1740869451466,-3269.32,0.00025205,2]
[355019933,1740869451475,-500.0,0.00025205,2]
[355019934,1740869451485,-500.0,0.00025205,2]
[355019935,1740869451494,-500.0,0.00025205,2]
[355019936,1740869451504,-752.86,0.00025205,2]
[355019937,1740869451514,-500.0,0.00025205,2]
[355019938,1740869451523,-543.19,0.00025205,2]
[355019939,1740869451533,-2518.74,0.00025205,2]
[355019940,1740869451542,-500.0,0.00025205,2]
[355019941,1740869451553,-500.0,0.00025205,2]
[355019942,1740869451563,-1956.61,0.00025205,2]
[355019943,1740869451572,-2027.59,0.00025205,2]
[355019944,1740869451582,-2021.19,0.00025205,2]
[355019945,1740869451591,-500.0,0.00025205,2]
[355019946,1740869451600,-178109.75,0.00025205,2]
[355019947,1740869451609,-500.0,0.00025205,2]
[355019948,1740869451619,-500.0,0.00025205,2]
[355019949,1740869451629,-756.44,0.00025205,2]
[355019950,1740869451639,-500.0,0.00025205,2]
[355019951,1740869451649,-500.0,0.00025205,2]
[355019952,1740869451659,-894.36,0.00025205,2]
[355019953,1740869451669,-500.0,0.00025205,2]
[355019954,1740869451678,-1944.71,0.00025205,2]
[355019955,1740869451687,-500.0,0.00025205,2]
[355019956,1740869451701,-500.0,0.00025205,2]
[355019957,1740869451711,-500.0,0.00025205,2]
[355019958,1740869451720,-500.0,0.00025205,2]
[355019959,1740869451730,-3542.43,0.00025205,2]
[355019960,1740869451740,-732.06,0.00025205,2]
[355019961,1740869451749,-555.78,0.00025205,2]
[355019962,1740869451759,-1393.47,0.00025205,2]
[355019963,1740869451769,-3614.66,0.00025205,2]
[355019964,1740869451779,-5612.56,0.00025205,2]
[355019965,1740869451789,-1821.66,0.00025205,2]
[355019966,1740869451799,-500.0,0.00025205,2]
[355019967,1740869451808,-500.0,0.00025205,2]
[355019968,1740869451818,-500.0,0.00025205,2]
[355019969,1740869451828,-500.0,0.00025205,2]
[355019970,1740869451838,-500.0,0.00025205,2]
[355019971,1740869451848,-500.0,0.00025205,2]
[355019972,1740869451857,-515.24679205,0.00025205,2]
[355019973,1740869451867,-720.41,0.00025205,2]
[355019974,1740869451877,-160.0,0.00025205,7]
[355019975,1740869451886,-1013.56,0.00025205,2]
[355019976,1740869451896,-523.09,0.00025205,2]
[355019977,1740869451906,-1051.42,0.00025205,2]
[355019978,1740869451915,-500.0,0.00025205,2]
[355019979,1740869451926,-500.0,0.00025205,2]
[355019980,1740869451935,-500.0,0.00025205,2]
[355019981,1740869451944,-500.0,0.00025205,2]
[355019982,1740869451954,-741.7,0.00025205,2]
[355019983,1740869451964,-970.3,0.00025205,2]
[355019984,1740869451973,-500.0,0.00025205,2]
[355019985,1740869451983,-500.0,0.00025205,2]
[355019986,1740869451992,-594.04,0.00025205,2]
[355019987,1740869452001,-500.0,0.00025205,2]
[355019988,1740869452011,-802.0,0.00025205,2]
[355019989,1740869452020,-500.0,0.00025205,2]
[355019990,1740869452030,-756.88,0.00025205,2]
[355019991,1740869452039,-500.0,0.00025205,2]
[355019992,1740869452049,-500.0,0.00025205,2]
[355019993,1740869452058,-500.0,0.00025205,2]
[355019994,1740869452067,-500.0,0.00025205,2]
[355019995,1740869452076,-500.0,0.00025205,2]
[355019996,1740869452086,-500.0,0.00025205,2]
[355019997,1740869452095,-500.0,0.00025205,2]
[355019998,1740869452105,-1380.54,0.00025205,2]
[355019999,1740869452114,-769.98,0.00025205,2]
[355020000,1740869452123,-500.0,0.00025205,2]
[355020001,1740869452133,-908.34,0.00025205,2]
[355020002,1740869452143,-500.0,0.00025205,2]
[355020003,1740869452152,-500.0,0.00025205,2]
[355020004,1740869452162,-500.0,0.00025205,2]
[355020005,1740869452171,-1051.16,0.00025205,2]
[355020006,1740869452180,-500.0,0.00025205,2]
[355020007,1740869452190,-3066.51,0.00025205,2]
[355020008,1740869452200,-14621.01,0.00025205,2]
[355020009,1740869452209,-935.87,0.00025205,2]
[355020010,1740869452219,-32756.79,0.00025205,2]
[355020011,1740869452228,-500.0,0.00025205,2]
[355020012,1740869452238,-539.72,0.00025205,2]
[355020013,1740869452247,-1478.8,0.00025205,2]
[355020014,1740869452257,-1085.25,0.00025205,5]
[355020015,1740869452266,-598.59,0.00025205,2]
[355020016,1740869452277,-288.9894092,0.00025205,2]
[355020019,1740869458401,-6371.8905908,0.00025205,2]
[355020020,1740869458411,-500.0,0.00025205,2]
[355020021,1740869458421,-500.0,0.00025205,2]
[355020022,1740869458431,-7423.82,0.00025205,2]
[355020023,1740869458440,-790.15,0.00025205,2]
[355020024,1740869458450,-2228.33,0.00025205,2]
[355020025,1740869458459,-1197.71,0.00025205,2]
[355020026,1740869458468,-1497.15,0.00025205,2]
[355020027,1740869458478,-507.36,0.00025205,2]
[355020028,1740869458487,-500.0,0.00025205,2]
[355020029,1740869458497,-4768.32,0.00025205,2]
[355020030,1740869458507,-14298.04,0.00025205,2]
[355020031,1740869458516,-790.62,0.00025205,2]
[355020032,1740869458526,-500.0,0.00025205,2]
[355020033,1740869458536,-500.0,0.00025205,2]
[355020034,1740869458546,-1988.8,0.00025205,2]
[355020035,1740869458555,-1044.28,0.00025205,2]
[355020036,1740869458565,-3889.5,0.00025205,2]
[355020037,1740869458574,-500.0,0.00025205,2]
[355020038,1740869458584,-500.0,0.00025205,2]
[355020039,1740869458594,-1555.46,0.00025205,2]
[355020040,1740869458604,-500.0,0.00025205,2]
[355020041,1740869458613,-853.64,0.00025205,2]
[355020042,1740869458623,-812.01,0.00025205,2]
[355020043,1740869458632,-500.0,0.00025205,2]
[355020044,1740869458642,-263.33209096,0.00025205,2]
[355020045,1740869458651,-255.57393402,0.00025205,2]
[355020046,1740869458662,-543.82,0.00025205,2]
[355020047,1740869458671,-500.0,0.00025205,2]
[355020048,1740869458680,-313.40039543,0.00025205,2]
[355020058,1740870564461,-223.99180898,0.00022886,2]
[355020059,1740870577024,-150.0,0.00020786,2]
[355020060,1740870605015,534.30209249,0.00025,35]
[355020086,1740870632050,-596.2017672,0.00020786,2]
[355020088,1740870632061,-571.0,0.00022786,2]
[355020090,1740870632074,-35.46663902,0.00022886,2]
[355020092,1740870632083,-176.71665944,0.00023105,2]
[355020094,1740870632094,-185.244618,0.00023356,2]
[355020096,1740870632104,-300.0,0.00023566,2]
[355020098,1740870632115,-24900.0,0.00023567,2]
[355020100,1740870632125,-174.721314,0.00023756,2]
[355020102,1740870632137,-3362.78950769,0.00024111,2]
[355020104,1740870632148,-244.98937734,0.00024556,2]
[355020106,1740870632158,-193.70031503,0.00024556,2]
[355020108,1740870632168,-222000.0,0.00024557,2]
[355020110,1740870632178,-1002.07271648,0.00024557,2]
[355020112,1740870632188,-431.35,0.000246,7]
[355020114,1740870632198,-1002.07271647,0.00024626,2]
[355020116,1740870632208,-443.38722618,0.00024657,2]
[355020118,1740870632218,-500.0,0.00024657,2]
[355020120,1740870632228,-500.0,0.00024657,2]
[355020122,1740870632238,-220.04247511,0.00024657,2]
[355020124,1740870632247,-500.0,0.00024657,2]
[355020126,1740870632257,-500.0,0.00024657,2]
[355020128,1740870632266,-500.0,0.00024657,2]
[355020130,1740870632276,-500.0,0.00024657,2]
[355020132,1740870632293,-500.0,0.00024657,2]
[355020134,1740870632303,-500.0,0.00024657,2]
[355020136,1740870632313,-500.0,0.00024657,2]
[355020138,1740870632323,-500.0,0.00024657,2]
[355020140,1740870632333,-500.0,0.00024657,2]
[355020142,1740870632343,-249.44333177,0.00024657,2]
[355020144,1740870632353,-500.0,0.00024657,2]
[355020146,1740870632363,-500.0,0.00024657,2]
[355020148,1740870632372,-500.0,0.00024657,2]
[355020150,1740870632382,-500.0,0.00024657,2]
[355020152,1740870632392,-500.0,0.00024657,2]
[355020154,1740870632402,-940.57,0.00024657,2]
[355020156,1740870632412,-500.0,0.00024657,2]
[355020158,1740870632422,-500.0,0.00024657,2]
[355020160,1740870632433,-788.34,0.00024657,2]
[355020162,1740870632443,-512.46,0.00024657,2]
[355020165,1740870632454,-507.49376202,0.00024657,2]
[355020167,1740870632464,-500.0,0.00024657,2]
[355020169,1740870632474,-1304.9,0.00024657,2]
[355020171,1740870632484,-500.0,0.00024657,2]
[355020173,1740870632494,-833.1,0.00024657,2]
[355020175,1740870632504,-1189.72,0.00024657,2]
[355020177,1740870632513,-500.0,0.00024657,2]
[355020179,1740870632523,-311.49889314,0.00024657,2]
[355020181,1740870632533,-500.0,0.00024657,2]
[355020183,1740870632543,-500.0,0.00024657,2]
[355020185,1740870632553,-500.0,0.00024657,2]
[355020187,1740870632563,-500.0,0.00024657,2]
[355020189,1740870632573,-500.0,0.00024657,2]
[355020191,1740870632583,-500.0,0.00024657,2]
[355020193,1740870632594,-152.651255,0.00024657,2]
[355020195,1740870632604,-500.0,0.00024657,2]
[355020197,1740870632614,-500.0,0.00024657,2]
[355020199,1740870632624,-500.0,0.00024657,2]
[355020201,1740870632633,-500.0,0.00024657,2]
[355020203,1740870632643,-500.0,0.00024657,2]
[355020205,1740870632653,-500.0,0.00024657,2]
[355020207,1740870632663,-500.0,0.00024657,2]
[355020209,1740870632673,-500.0,0.00024657,2]
[355020211,1740870632683,-500.0,0.00024657,2]
[355020213,1740870632693,-600.0,0.00024657,2]
[355020215,1740870632703,-500.0,0.00024657,2]
[355020217,1740870632713,-406.61527626,0.00024657,2]
[355020219,1740870632723,-365.24870982,0.00024657,2]
[355020221,1740870632733,-500.0,0.00024657,2]
[355020223,1740870632743,-500.0,0.00024657,2]
[355020225,1740870632753,-620.04494997,0.00024657,2]
[355020227,1740870632763,-500.0,0.00024657,2]
[355020229,1740870632773,-500.0,0.00024657,2]
[355020231,1740870632782,-1597.02,0.00024657,2]
[355020233,1740870632792,-500.0,0.00024657,2]
[355020235,1740870632802,-500.0,0.00024657,2]
[355020237,1740870632813,-500.0,0.00024657,2]
[355020239,1740870632823,-500.0,0.00024657,2]
[355020241,1740870632833,-460.22798626,0.00024657,2]
[355020243,1740870632844,-500.0,0.00024657,2]
[355020245,1740870632853,-500.0,0.00024657,2]
[355020247,1740870632864,-500.0,0.00024657,2]
[355020249,1740870632874,-599.35,0.00024657,2]
[355020251,1740870632885,-500.0,0.00024657,2]
[355020253,1740870632894,-1220.71,0.00024657,2]
[355020255,1740870632904,-1350.33,0.00024657,2]
[355020258,1740870632914,-655.46,0.00024657,2]
[355020260,1740870632938,-501.61045468,0.00024657,2]
[355020262,1740870632948,-500.0,0.00024657,2]
[355020265,1740870632958,-500.0,0.00024657,2]
[355020267,1740870632968,-500.0,0.00024657,2]
[355020269,1740870632979,-500.0,0.00024657,2]
[355020301,1740870633303,-500.0,0.00024657,2]
[355020303,1740870633315,-1000.0,0.00024657,2]
[355020305,1740870633326,-500.0,0.00024657,2]
[355020307,1740870633338,-1007.78,0.00024657,2]
[355020309,1740870633348,-500.0,0.00024657,2]
[355020311,1740870633358,-500.0,0.00024657,2]
[355020314,1740870633369,-500.0,0.00024657,2]
[355020316,1740870633379,-500.0,0.00024657,2]
[355020318,1740870633389,-561.22916738,0.00024657,2]
[355020320,1740870633399,-500.0,0.00024657,2]
[355020322,1740870633409,-500.0,0.00024657,2]
[355020324,1740870633420,-500.0,0.00024657,2]
[355020326,1740870633429,-500.0,0.00024657,2]
[355020328,1740870633447,-500.0,0.00024657,2]
[355020330,1740870633457,-500.0,0.00024657,2]
[355020332,1740870633467,-500.0,0.00024657,2]
[355020334,1740870633477,-500.0,0.00024657,2]
[355020336,1740870633488,-821.38,0.00024657,2]
[355020338,1740870633499,-558.06420154,0.00024657,2]
[355020340,1740870633511,-500.0,0.00024657,2]
[355020342,1740870633522,-506.75528044,0.00024657,2]
[355020344,1740870633533,-500.0,0.00024657,2]
[355020346,1740870633544,-500.0,0.00024657,2]
[355020348,1740870633555,-1364.93,0.00024657,2]
[355020350,1740870633566,-500.0,0.00024657,2]
[355020353,1740870633577,-500.0,0.00024657,2]
[355020354,1740870633588,-500.0,0.00024657,2]
[355020356,1740870633598,-500.0,0.00024657,2]
[355020358,1740870633610,-500.0,0.00024657,2]
[355020361,1740870633621,-500.0,0.00024657,2]
[355020363,1740870633632,-881.83,0.00024657,2]
[355020365,1740870633643,-500.0,0.00024657,2]
[355020367,1740870633654,-500.0,0.00024657,2]
[355020369,1740870633666,-174.53736287,0.00024657,2]
[355020371,1740870633677,-403.30702622,0.00024657,2]
[355020373,1740870633687,-500.0,0.00024657,2]
[355020375,1740870633697,-500.0,0.00024657,2]
[355020377,1740870633707,-500.0,0.00024657,2]
[355020379,1740870633717,-500.0,0.00024657,2]
[355020381,1740870633728,-500.0,0.00024657,2]
[355020383,1740870633739,-500.0,0.00024657,2]
[355020385,1740870633750,-500.0,0.00024657,2]
[355020387,1740870633760,-500.0,0.00024657,2]
[355020389,1740870633769,-500.0,0.00024657,2]
[355020391,1740870633780,-659.49,0.00024657,2]
[355020393,1740870633790,-500.0,0.00024657,2]
[355020395,1740870633800,-1022.43,0.00024657,2]
[355020397,1740870633810,-500.0,0.00024657,2]
[355020399,1740870633822,-500.0,0.00024657,2]
[355020401,1740870633832,-500.0,0.00024657,2]
[355020403,1740870633844,-500.0,0.00024657,2]
[355020405,1740870633854,-500.0,0.00024657,2]
[355020407,1740870633866,-500.0,0.00024657,2]
[355020409,1740870633876,-1098.87,0.00024657,2]
[355020411,1740870633886,-500.0,0.00024657,2]
[355020413,1740870633897,-781.24,0.00024657,2]
[355020415,1740870633907,-500.0,0.00024657,2]
[355020417,1740870633918,-500.0,0.00024657,2]
[355020419,1740870633928,-522.59,0.00024657,2]
[355020421,1740870633938,-500.0,0.00024657,2]
[355020423,1740870633948,-500.0,0.00024657,2]
[355020425,1740870633958,-500.0,0.00024657,2]
[355020427,1740870633970,-1263.09,0.00024657,2]
[355020429,1740870633982,-510.48348613,0.00024657,2]
[355020431,1740870633993,-500.0,0.00024657,2]
[355020433,1740870634003,-584.5,0.00024657,2]
[355020436,1740870634015,-500.0,0.00024657,2]
[355020438,1740870634026,-500.0,0.00024657,2]
[355020439,1740870634038,-500.0,0.00024657,2]
[355020441,1740870634050,-500.0,0.00024657,2]